bitfinex/quotes_BTCUSD_20250127
["timestamp","ask_amount","ask_price","bid_price","bid_amount"]
[1738019421676,0.99695582,102220.0,102210.0,0.41712732]
[1738019423259,1.0067106,102220.0,102210.0,0.41712732]
[1738019425271,0.71642131,102220.0,102210.0,0.56388332]
[1738019425921,0.94781843,102220.0,102210.0,0.41712732]
[1738019426326,0.80107643,102220.0,102210.0,0.41712732]
[1738019426729,0.94781843,102220.0,102210.0,0.41712732]
[1738019426892,1.04516572,102220.0,102210.0,0.41712732]
[1738019427096,0.89842372,102220.0,102210.0,0.41742447]
[1738019427290,0.89842372,102220.0,102210.0,0.56418047]
[1738019427497,0.91376897,102220.0,102210.0,0.56418047]
[1738019428051,0.91376897,102220.0,102210.0,0.41742447]
[1738019429294,0.81642168,102220.0,102210.0,0.41742447]
[1738019429513,0.96316368,102220.0,102210.0,0.41742447]
[1738019430797,0.70107643,102220.0,102210.0,0.56418047]
[1738019431095,0.50372914,102220.0,102210.0,0.6450071]
[1738019431300,0.01089618,102220.0,102210.0,0.6450071]
[1738019432049,0.10989618,102220.0,102210.0,0.55757776]
[1738019432536,0.25398547,102220.0,102210.0,0.41082176]
[1738019432677,0.35398547,102220.0,102210.0,0.41482176]
[1738019433053,0.22676713,102220.0,102210.0,0.56157776]
[1738019433773,0.22776713,102220.0,102210.0,0.56157776]
[1738019433979,0.22776713,102220.0,102210.0,0.55757776]
[1738019434160,0.22676713,102220.0,102210.0,0.55757776]
[1738019434397,0.23848185,102220.0,102210.0,0.55757776]
[1738019434972,0.23848185,102220.0,102210.0,0.55857776]
[1738019435519,0.40253881,102220.0,102210.0,0.55857776]
[1738019435722,0.64928081,102220.0,102210.0,0.41182176]
[1738019435988,0.79928081,102220.0,102210.0,0.41182176]
[1738019436154,0.71462553,102220.0,102210.0,0.41182176]
[1738019436992,0.71562553,102220.0,102210.0,0.41082176]
[1738019437162,0.71366559,102220.0,102210.0,0.41082176]
[1738019437358,0.68438715,102220.0,102210.0,0.41082176]
[1738019438875,0.66904243,102220.0,102210.0,0.41082176]
[1738019442193,0.65928765,102220.0,102210.0,0.41082176]
[1738019443114,0.65928765,102220.0,102210.0,0.40852176]
[1738019445096,0.65928765,102220.0,102210.0,0.40762176]
[1738019445526,0.65933659,102220.0,102210.0,0.40482176]
[1738019446363,0.65933659,102220.0,102210.0,0.40422176]
[1738019446568,0.57357963,102220.0,102210.0,0.40422176]
[1738019446774,0.57357963,102220.0,102210.0,0.40332176]
[1738019447432,0.47357963,102220.0,102210.0,0.40332176]
[1738019448076,0.48892539,102220.0,102210.0,0.40332176]
[1738019448940,0.47357963,102220.0,102210.0,0.40332176]
[1738019449158,0.58116692,102220.0,102210.0,0.40332176]
[1738019451859,0.39527963,102220.0,102210.0,0.40332176]
[1738019452201,0.40539963,102220.0,102210.0,0.40332176]
[1738019452620,0.19853763,102220.0,102210.0,0.55007776]
[1738019453452,0.19753763,102220.0,102210.0,0.55007776]
[1738019453830,0.20732158,102220.0,102210.0,0.55007776]
[1738019454031,0.24071574,102220.0,102210.0,0.55107776]
[1738019454234,0.20732158,102220.0,102210.0,0.55107776]
[1738019456286,0.43296358,102220.0,102210.0,0.40432176]
[1738019456869,0.58296358,102220.0,102210.0,0.40432176]
[1738019457022,0.59830908,102220.0,102210.0,0.40432176]
[1738019457234,0.69565637,102220.0,102210.0,0.40332176]
[1738019459078,0.59930908,102220.0,102210.0,0.40332176]
[1738019460992,0.58396358,102220.0,102210.0,0.40332176]
[1738019461198,0.16097429,102220.0,102210.0,0.55007776]
[1738019461431,0.25832158,102220.0,102210.0,0.55007776]
[1738019462830,0.10832158,102220.0,102210.0,0.55007776]
[1738019464219,0.14080374,102220.0,102210.0,0.55007776]
[1738019464463,0.13980374,102220.0,102210.0,0.55007776]
[1738019464617,0.13980374,102220.0,102210.0,0.55107776]
[1738019464839,0.13980374,102220.0,102210.0,0.40432176]
[1738019464840,0.23980374,102220.0,102210.0,0.40432176]
[1738019465063,0.46624574,102220.0,102210.0,0.40432176]
[1738019465298,0.46624574,102220.0,102210.0,0.39832176]
[1738019465800,0.51624574,102220.0,102210.0,0.39832176]
[1738019465971,0.59694574,102220.0,102210.0,0.39832176]
[1738019466195,0.59694574,102220.0,102210.0,0.39622176]
[1738019466593,0.58716179,102220.0,102210.0,0.39622176]
[1738019466788,0.60716179,102220.0,102210.0,0.39622176]
[1738019466990,0.60816179,102220.0,102210.0,0.39522176]
[1738019467245,0.59816179,102220.0,102210.0,0.2728445]
[1738019467456,1.1902114,102220.0,102210.0,0.12279839]
[1738019467660,0.6375964,102220.0,102210.0,0.04146242]
[1738019467868,2.3079424,102220.0,102210.0,0.01155924]
[1738019468068,2.4112424,102220.0,102210.0,2.4e-07]
[1738019468271,0.73067067,102220.0,102210.0,0.46959224]
[1738019468485,0.75679037,102220.0,102210.0,0.41088824]
[1738019468683,2.12501037,102220.0,102210.0,0.41088824]
[1738019468875,2.03623037,102220.0,102210.0,0.41088824]
[1738019469078,2.03623037,102220.0,102210.0,0.26169697]
[1738019469491,1.04641899,102220.0,102210.0,0.26169697]
[1738019469695,0.57351099,102220.0,102210.0,0.26169697]
[1738019469902,0.57151099,102220.0,102210.0,0.26169697]
[1738019470107,0.60066362,102220.0,102210.0,0.26169697]
[1738019470313,0.60066362,102220.0,102210.0,0.27303468]
[1738019470542,0.61566362,102220.0,102210.0,0.27303468]
[1738019470753,0.58551099,102220.0,102210.0,0.27303468]
[1738019470960,0.56616179,102220.0,102210.0,0.27303468]
[1738019471388,0.56916179,102220.0,102210.0,0.27303468]
[1738019471598,0.59216179,102220.0,102210.0,0.27303468]
[1738019472024,0.56885082,102220.0,102210.0,0.27303468]
[1738019472235,0.20053763,102220.0,102210.0,0.41979068]
[1738019472452,0.20053763,102220.0,102210.0,0.26933183]
[1738019472645,0.34927963,102220.0,102210.0,0.26933183]
[1738019472856,0.49927963,102220.0,102210.0,0.41608783]
[1738019473224,0.49927963,102220.0,102210.0,0.26933183]
[1738019473629,0.55399097,102220.0,102210.0,0.26933183]
[1738019473839,0.54399097,102220.0,102210.0,0.26933183]
[1738019474023,0.53399097,102220.0,102210.0,0.26933183]
[1738019474400,0.53399097,102220.0,102210.0,0.26533183]
[1738019474401,0.63133826,102220.0,102210.0,0.26533183]
[1738019475026,0.82821237,102220.0,102210.0,0.26533183]
[1738019475439,0.82821237,102220.0,102210.0,0.26513183]
[1738019475862,0.82821237,102220.0,102210.0,0.25283183]
[1738019476113,0.60638637,102220.0,102210.0,0.25283183]
[1738019476296,0.63638637,102220.0,102210.0,0.25283183]
[1738019476436,0.64962692,102220.0,102210.0,0.25283183]
[1738019476653,0.62962692,102220.0,102210.0,0.25283183]
[1738019476856,0.62962692,102220.0,102210.0,0.24913183]
[1738019477494,0.6349747,102220.0,102210.0,0.24913183]
[1738019478272,0.6349747,102220.0,102210.0,0.23683183]
[1738019478831,0.6449747,102220.0,102210.0,0.23683183]
[1738019479580,0.6349747,102220.0,102210.0,0.23683183]
[1738019479812,0.6449747,102220.0,102210.0,0.23683183]
[1738019480509,0.62962692,102220.0,102210.0,0.23683183]
[1738019481145,0.61962692,102220.0,102210.0,0.23683183]
[1738019481666,0.84557692,102220.0,102210.0,0.23683183]
[1738019482501,0.81710692,102220.0,102210.0,0.23683183]
[1738019483164,0.82702692,102220.0,102210.0,0.23683183]
[1738019483366,0.85619864,102220.0,102210.0,0.23683183]
[1738019483577,0.77277564,102220.0,102210.0,0.23683183]
[1738019485554,1.19847564,102220.0,102210.0,0.2339974]
[1738019485758,1.32769534,102220.0,102210.0,0.14722212]
[1738019485928,1.36155502,102220.0,102210.0,0.12765412]
[1738019486960,1.37390495,102220.0,102210.0,0.12765412]
[1738019487508,1.37390495,102220.0,102210.0,0.11845412]
[1738019487635,1.37190495,102220.0,102210.0,0.10095412]
[1738019487844,1.37390495,102220.0,102210.0,0.10095412]
[1738019488043,1.37590495,102220.0,102210.0,0.10095412]
[1738019488404,1.07590495,102220.0,102210.0,0.10095412]
[1738019489001,0.95184795,102220.0,102210.0,0.09175412]
[1738019489313,3.39014295,102220.0,102210.0,0.07425412]
[1738019490511,3.36583295,102220.0,102210.0,0.07425412]
[1738019490723,3.23746002,102220.0,102210.0,0.06505412]
[1738019490938,0.92586164,102220.0,102210.0,0.04755412]
[1738019491565,0.94886164,102220.0,102210.0,0.04755412]
[1738019491772,0.94486164,102220.0,102210.0,0.04755412]
[1738019492191,0.94986164,102220.0,102210.0,0.03835412]
[1738019492608,0.97598134,102220.0,102210.0,0.02085412]
[1738019493328,1.07908134,102220.0,102210.0,0.02085412]
[1738019493929,1.11294102,102220.0,102210.0,0.02085412]
[1738019494351,1.11294102,102220.0,102210.0,0.01865412]
[1738019497055,1.12829114,102220.0,102210.0,0.01865412]
[1738019497718,1.11294102,102220.0,102210.0,0.01865412]
[1738019499156,1.11294102,102220.0,102210.0,1.2e-07]
[1738019499329,4.49642,102210.0,102200.0,0.0005]
[1738019499539,6.67712692,102210.0,102200.0,0.0005]
[1738019499746,0.419771,102200.0,102190.0,9.715e-05]
[1738019499952,0.419771,102200.0,102190.0,0.41107315]
[1738019499953,3.55543667,102200.0,102190.0,0.41107315]
[1738019500121,3.55543667,102200.0,102190.0,0.31321815]
[1738019500333,3.55543667,102200.0,102190.0,0.28721815]
[1738019500545,3.65278396,102200.0,102190.0,0.28721815]
[1738019501324,3.65578396,102200.0,102190.0,0.28721815]
[1738019501744,3.65778396,102200.0,102190.0,0.28721815]
[1738019501947,3.65778396,102200.0,102190.0,0.26401815]
[1738019502380,3.65778396,102200.0,102190.0,0.24444715]
[1738019502570,3.65778396,102200.0,102190.0,0.22487615]
[1738019502825,3.65778396,102200.0,102190.0,0.16616315]
[1738019503042,0.296828,102160.0,102150.0,0.08209694]
[1738019503227,1.41848035,102160.0,102150.0,0.57154694]
[1738019503434,1.60798035,102160.0,102150.0,0.58309268]
[1738019503858,1.61798035,102160.0,102150.0,0.50129268]
[1738019504273,1.61807604,102160.0,102150.0,0.49786268]
[1738019504472,1.6334309,102160.0,102150.0,0.49497625]
[1738019504682,1.6344309,102160.0,102150.0,0.49497625]
[1738019504853,1.6334309,102160.0,102150.0,0.49786268]
[1738019505061,1.6344309,102160.0,102150.0,0.49786268]
[1738019505293,1.61907604,102160.0,102150.0,0.49786268]
[1738019505472,1.61807604,102160.0,102150.0,0.49786268]
[1738019505683,1.61811604,102160.0,102150.0,0.49786268]
[1738019506298,1.62011604,102160.0,102150.0,0.49786268]
[1738019506528,1.61811604,102160.0,102150.0,0.49786268]
[1738019506741,1.63811604,102160.0,102150.0,0.49786268]
[1738019506933,1.64011604,102160.0,102150.0,0.49786268]
[1738019507257,1.64011604,102160.0,102150.0,0.49497625]
[1738019507475,1.34987594,102160.0,102150.0,0.64470468]
[1738019507687,1.45964179,102160.0,102150.0,0.72550468]
[1738019508424,1.45864179,102160.0,102150.0,0.72550468]
[1738019508626,1.44904179,102160.0,102150.0,0.72550468]
[1738019508857,1.20860179,102160.0,102150.0,0.77220468]
[1738019509215,1.20660179,102160.0,102150.0,0.77220468]
[1738019509605,1.19783594,102160.0,102150.0,0.77220468]
[1738019509789,1.29518323,102160.0,102150.0,0.77220468]
[1738019510778,1.04277594,102160.0,102150.0,0.77220468]
[1738019513858,1.14277594,102160.0,102150.0,0.77220468]
[1738019515203,0.75592865,102160.0,102150.0,0.88296652]
[1738019515992,0.75592865,102160.0,102150.0,0.87142078]
[1738019516414,0.75592865,102160.0,102150.0,0.88296652]
[1738019518194,0.75592865,102160.0,102150.0,0.88326388]
[1738019518398,0.75607025,102160.0,102150.0,0.88326388]
[1738019521142,0.00976585,102180.0,102150.0,1.29451946]
[1738019521359,8.5e-07,102180.0,102170.0,0.64503768]
[1738019521571,0.59297436,102220.0,102210.0,0.146756]
[1738019521782,0.0001414,102220.0,102210.0,0.87751611]
[1738019521987,0.0001414,102220.0,102210.0,0.98729968]
[1738019522179,0.0001414,102220.0,102210.0,0.99596031]
[1738019522405,0.0001414,102220.0,102210.0,0.99884719]
[1738019522583,0.0001414,102220.0,102210.0,0.88519847]
[1738019523022,0.0001414,102220.0,102210.0,0.88808535]
[1738019523427,0.0001414,102220.0,102210.0,0.99884719]
[1738019523766,0.0001414,102220.0,102210.0,0.89008535]
[1738019524175,0.0001414,102220.0,102210.0,0.89108535]
[1738019526668,0.0001414,102220.0,102210.0,0.91086309]
[1738019527219,0.0001414,102220.0,102210.0,0.80010125]
[1738019527416,0.0001414,102220.0,102210.0,0.78032351]
[1738019527417,0.59297436,102220.0,102210.0,0.78032351]
[1738019527627,0.59032165,102220.0,102210.0,0.65362351]
[1738019527857,0.83706365,102220.0,102210.0,0.50686751]
[1738019528070,0.69032165,102220.0,102210.0,0.65362351]
[1738019528272,0.49297436,102220.0,102210.0,0.76149847]
[1738019528477,0.49297436,102220.0,102210.0,0.81148535]
[1738019529086,0.49297436,102220.0,102210.0,0.89188535]
[1738019529279,0.49297436,102220.0,102210.0,0.88726635]
[1738019530130,0.50831836,102220.0,102210.0,0.77650451]
[1738019530340,0.50831836,102220.0,102210.0,0.88726635]
[1738019530469,0.50831836,102220.0,102210.0,0.77650451]
[1738019530677,0.67649749,102220.0,102210.0,0.77650451]
[1738019531335,0.67649749,102220.0,102210.0,0.69610451]
[1738019532195,0.60566565,102220.0,102210.0,0.69610451]
[1738019532898,0.60566565,102220.0,102210.0,0.64900451]
[1738019532899,0.80566565,102220.0,102210.0,0.64900451]
[1738019534923,0.80566565,102220.0,102210.0,0.50224851]
[1738019535125,0.69032165,102220.0,102210.0,0.64900451]
[1738019535566,0.79032165,102220.0,102210.0,0.64900451]
[1738019536123,0.87030581,102220.0,102210.0,0.50224851]
[1738019536328,0.77030581,102220.0,102210.0,0.64900451]
[1738019536524,0.87030581,102220.0,102210.0,0.64900451]
[1738019537377,0.87030581,102220.0,102210.0,0.50224851]
[1738019537582,0.87030581,102220.0,102210.0,0.64900451]
[1738019538597,0.88565128,102220.0,102210.0,0.64900451]
[1738019539379,0.80566712,102220.0,102210.0,0.64900451]
[1738019539558,0.70566712,102220.0,102210.0,0.64900451]
[1738019539785,0.69032165,102220.0,102210.0,0.64900451]
[1738019543124,0.49297436,102220.0,102210.0,0.84106635]
[1738019543339,0.0001414,102220.0,102210.0,0.88976635]
[1738019544186,0.0001414,102220.0,102210.0,1.24487548]
[1738019544394,0.451625,102240.0,102230.0,0.33878884]
[1738019544395,0.262125,102240.0,102230.0,0.33878884]
[1738019544604,0.26227193,102240.0,102230.0,0.720257]
[1738019544816,0.26227193,102240.0,102230.0,0.83685229]
[1738019545229,0.11677193,102240.0,102230.0,0.83685229]
[1738019546068,0.11677193,102240.0,102230.0,0.83785229]
[1738019546489,0.00027193,102240.0,102230.0,0.83785229]
[1738019546697,0.00027193,102240.0,102230.0,0.88665229]
[1738019546896,0.01561232,102240.0,102230.0,0.88665229]
[1738019547075,0.01561232,102240.0,102230.0,0.88965229]
[1738019547213,0.01561232,102240.0,102230.0,1.03965229]
[1738019547687,0.01561232,102240.0,102230.0,1.16696111]
[1738019548101,0.01561232,102240.0,102230.0,1.13699958]
[1738019548241,0.01561232,102240.0,102230.0,1.16695543]
[1738019548795,0.01552342,102240.0,102230.0,1.16695543]
[1738019548993,0.00018303,102240.0,102230.0,1.16695543]
[1738019549242,0.00018303,102240.0,102230.0,1.17679512]
[1738019550719,0.00018303,102240.0,102230.0,1.28755696]
[1738019551122,0.00018303,102240.0,102230.0,1.17679512]
[1738019551534,0.00018303,102240.0,102230.0,1.28755696]
[1738019551730,0.00018303,102240.0,102230.0,1.17679512]
[1738019694582,1.01771254,102190.0,102180.0,0.03536939]
[1738019694817,1.01771254,102190.0,102180.0,0.03566675]
[1738019695197,1.01785414,102190.0,102180.0,0.03566675]
[1738019696202,1.00845414,102190.0,102180.0,0.03566675]
[1738019696376,1.04785414,102190.0,102180.0,0.03566675]
[1738019697325,1.03785414,102190.0,102180.0,0.03566675]
[1738019698107,1.04785414,102190.0,102180.0,0.03566675]
[1738019698296,1.03785414,102190.0,102180.0,0.03566675]
[1738019699518,1.04785414,102190.0,102180.0,0.03566675]
[1738019699745,0.55502118,102190.0,102180.0,0.03566675]
[1738019699956,1.04785414,102190.0,102180.0,0.03566675]
[1738019700400,1.04785414,102190.0,102180.0,0.52497675]
[1738019705399,1.03785414,102190.0,102180.0,0.52497675]
[1738019706299,1.01785414,102190.0,102180.0,0.52497675]
[1738019706722,1.03785414,102190.0,102180.0,0.52497675]
[1738019708048,1.03785414,102190.0,102180.0,0.4987689]
[1738019708457,1.03785414,102190.0,102180.0,0.52392074]
[1738019709686,0.91110685,102190.0,102180.0,0.52392074]
[1738019709891,0.91750685,102190.0,102180.0,0.52392074]
[1738019710315,0.94050685,102190.0,102180.0,0.52392074]
[1738019710519,0.92050685,102190.0,102180.0,0.52392074]
[1738019711833,0.94050685,102190.0,102180.0,0.52392074]
[1738019712136,0.94050685,102190.0,102180.0,0.56056962]
[1738019712137,1.11785414,102190.0,102180.0,0.56056962]
[1738019712319,1.11785414,102190.0,102180.0,0.63686962]
[1738019712927,1.02050685,102190.0,102180.0,0.63686962]
[1738019713509,0.52767389,102190.0,102180.0,0.63686962]
[1738019713875,0.55767389,102190.0,102180.0,0.56056962]
[1738019714608,0.53767389,102190.0,102180.0,0.56056962]
[1738019717237,0.55771835,102190.0,102180.0,0.56056962]
[1738019717431,0.65506564,102190.0,102180.0,0.56056962]
[1738019722133,0.66101701,102190.0,102180.0,0.56056962]
[1738019722347,0.11384026,102190.0,102180.0,0.79016862]
[1738019722551,0.09848889,102190.0,102180.0,0.83876862]
[1738019722755,0.09848889,102190.0,102180.0,0.69196962]
[1738019722756,0.37767389,102190.0,102180.0,0.69196962]
[1738019722967,0.52767389,102190.0,102180.0,0.69196962]
[1738019723145,0.62502118,102190.0,102180.0,0.83876862]
[1738019723987,0.62402118,102190.0,102180.0,0.69196962]
[1738019724131,0.62402118,102190.0,102180.0,0.69296962]
[1738019724331,0.62402118,102190.0,102180.0,0.56156962]
[1738019724530,0.62402118,102190.0,102180.0,0.56056962]
[1738019724844,0.62502118,102190.0,102180.0,0.56056962]
[1738019725631,0.6403718,102190.0,102180.0,0.56056962]
[1738019725804,0.62502118,102190.0,102180.0,0.56056962]
[1738019726007,0.52767389,102190.0,102180.0,0.56056962]
[1738019726785,0.35788889,102190.0,102180.0,0.70736862]
[1738019727330,0.50467389,102190.0,102180.0,0.56056962]
[1738019727676,0.52767389,102190.0,102180.0,0.56056962]
[1738019728477,0.52767389,102190.0,102180.0,0.70736862]
[1738019728679,0.38088889,102190.0,102180.0,0.70736862]
[1738019728882,0.35788889,102190.0,102180.0,0.75546862]
[1738019730230,0.62502118,102190.0,102180.0,0.60866962]
[1738019730435,0.62502118,102190.0,102180.0,0.56204962]
[1738019731915,0.63502118,102190.0,102180.0,0.56204962]
[1738019732125,0.65502118,102190.0,102180.0,0.56204962]
[1738019732352,1.88482618,102190.0,102180.0,0.56204962]
[1738019732540,1.95302618,102190.0,102180.0,0.56204962]
[1738019733317,2.00812155,102190.0,102180.0,0.55337803]
[1738019733533,2.00812155,102190.0,102180.0,0.56326428]
[1738019734110,2.02915659,102190.0,102180.0,0.56326428]
[1738019734325,2.03015659,102190.0,102180.0,0.54561377]
[1738019734765,1.97506122,102190.0,102180.0,0.54561377]
[1738019734972,1.95302618,102190.0,102180.0,0.54561377]
[1738019735223,1.97914588,102190.0,102180.0,0.52488843]
[1738019736295,1.99851707,102190.0,102180.0,0.52488843]
[1738019736628,1.97851707,102190.0,102180.0,0.42702343]
[1738019736836,1.97851707,102190.0,102180.0,0.41713718]
[1738019738180,2.28851707,102190.0,102180.0,0.42702343]
[1738019738319,2.27851707,102190.0,102180.0,0.42702343]
[1738019738727,2.27751707,102190.0,102180.0,0.41713718]
[1738019739079,2.27851707,102190.0,102180.0,0.42702343]
[1738019739908,2.27851707,102190.0,102180.0,0.41713718]
[1738019740299,2.27851707,102190.0,102180.0,0.35819141]
[1738019740498,2.27851707,102190.0,102180.0,0.24260601]
[1738019740499,2.02631707,102190.0,102180.0,0.24260601]
[1738019740699,2.02631707,102190.0,102180.0,0.23271976]
[1738019741104,0.296828,102160.0,102150.0,0.00029736]
[1738019741328,0.296828,102160.0,102150.0,0.00078746]
[1738019741329,1.81694445,102160.0,102150.0,0.00078746]
[1738019741485,2.00644445,102160.0,102150.0,0.49023746]
[1738019741927,2.55700745,102160.0,102150.0,0.50022776]
[1738019742162,2.55700745,102160.0,102150.0,0.50004925]
[1738019742397,2.53800745,102160.0,102150.0,0.49005895]
[1738019742567,2.5638912,102160.0,102150.0,0.49005895]
[1738019743015,1.7479282,102160.0,102150.0,0.22248922]
[1738019743265,0.826871,102130.0,102120.0,0.00029715]
[1738019743463,4.58852354,102130.0,102120.0,0.00078785]
[1738019743595,4.97330729,102130.0,102120.0,0.49038785]
[1738019744272,4.67330729,102130.0,102120.0,0.49038785]
[1738019745412,4.67430729,102130.0,102120.0,0.49038785]
[1738019745903,4.67330729,102130.0,102120.0,0.49038785]
[1738019746113,4.67430729,102130.0,102120.0,0.49038785]
[1738019746655,4.62218829,102130.0,102120.0,0.49038785]
[1738019746886,2.98054554,102130.0,102120.0,0.49038785]
[1738019747200,2.96853954,102130.0,102120.0,0.49038785]
[1738019747808,2.98815144,102130.0,102120.0,0.49038785]
[1738019748847,2.9981111,102130.0,102120.0,0.50048226]
[1738019749198,2.6787511,102130.0,102120.0,0.50048226]
[1738019749408,2.7200201,102130.0,102120.0,0.50048226]
[1738019749841,2.5020582,102130.0,102120.0,0.50048226]
[1738019750040,1.55848025,102130.0,102120.0,0.71287385]
[1738019750251,1.65848025,102130.0,102120.0,0.72296826]
[1738019750452,1.80848025,102130.0,102120.0,0.72296826]
[1738019750668,1.43818025,102130.0,102120.0,0.72296826]
[1738019750886,1.53552754,102130.0,102120.0,0.72296826]
[1738019751087,1.58239854,102130.0,102120.0,0.57608226]
[1738019751303,1.60539854,102130.0,102120.0,0.50048226]
[1738019752013,1.43718025,102130.0,102120.0,0.72636826]
[1738019752356,1.31018025,102130.0,102120.0,0.72636826]
[1738019752788,1.31118025,102130.0,102120.0,0.72636826]
[1738019752988,1.46118025,102130.0,102120.0,0.72636826]
[1738019753198,1.47123761,102130.0,102120.0,0.72636826]
[1738019753401,1.5685849,102130.0,102120.0,0.72636826]
[1738019754045,1.7154559,102130.0,102120.0,0.57948226]
[1738019754218,1.7154559,102130.0,102120.0,0.50048226]
[1738019754792,2.0443559,102130.0,102120.0,0.50048226]
[1738019754994,2.2323379,102130.0,102120.0,0.49038785]
[1738019755244,2.2323379,102130.0,102120.0,0.47473634]
[1738019755444,2.3130379,102130.0,102120.0,0.47473634]
[1738019755649,2.38358805,102130.0,102120.0,0.48483075]
[1738019756002,2.36822692,102130.0,102120.0,0.47473634]
[1738019756181,2.37722692,102130.0,102120.0,0.47473634]
[1738019756436,2.36822692,102130.0,102120.0,0.47473634]
[1738019756659,2.39030319,102130.0,102120.0,0.46716973]
[1738019757198,2.39030319,102130.0,102120.0,0.45707532]
[1738019757395,2.39030319,102130.0,102120.0,0.46716973]
[1738019757605,2.40016109,102130.0,102120.0,0.45707532]
[1738019758677,2.40016109,102130.0,102120.0,0.46716973]
[1738019759816,2.38016109,102130.0,102120.0,0.44758473]
[1738019760045,2.10604484,102130.0,102120.0,0.28081032]
[1738019760377,2.10604484,102130.0,102120.0,0.26122532]
[1738019760785,2.12548127,102130.0,102120.0,0.26122532]
[1738019760990,2.12548127,102130.0,102120.0,1e-08]
[1738019761192,1.92859927,102130.0,102120.0,1e-08]
[1738019762820,2.20271552,102130.0,102120.0,1e-08]
[1738019763640,2.21271552,102130.0,102120.0,1e-08]
[1738019763853,1.90271552,102130.0,102120.0,1e-08]
[1738019764049,1.91283552,102130.0,102120.0,1e-08]
[1738019764297,1.90283552,102130.0,102120.0,1e-08]
[1738019764459,1.92871927,102130.0,102120.0,0.48960061]
[1738019764621,1.92871927,102130.0,102120.0,0.41126061]
[1738019765276,6.57245627,102130.0,102120.0,0.31333561]
[1738019765478,6.44999927,102130.0,102120.0,0.31333561]
[1738019765635,6.43652027,102130.0,102120.0,0.31333561]
[1738019765842,5.70664527,102130.0,102120.0,0.31333561]
[1738019766273,5.80984527,102130.0,102120.0,0.11356922]
[1738019766467,5.80984527,102130.0,102120.0,0.10386379]
[1738019766680,0.3199,102110.0,102100.0,0.00025715]
[1738019766830,4.11962675,102110.0,102100.0,0.00074828]
[1738019767039,4.4917705,102110.0,102100.0,0.00074828]
[1738019767239,4.4917705,102110.0,102100.0,0.49043828]
[1738019767692,4.4917705,102110.0,102100.0,0.39249328]
[1738019767921,4.4917705,102110.0,102100.0,0.3825213]
[1738019768119,4.58911779,102110.0,102100.0,0.2845763]
[1738019768532,0.456929,102090.0,102080.0,0.00029673]
[1738019768750,2.630695,102090.0,102080.0,0.00078792]
[1738019768956,2.09358125,102090.0,102080.0,0.49057792]
[1738019769179,2.09358125,102090.0,102080.0,0.50081123]
[1738019769180,2.09658125,102090.0,102080.0,0.50081123]
[1738019769539,1.62399925,102090.0,102080.0,0.50081123]
[1738019769770,1.48410925,102090.0,102080.0,0.50081123]
[1738019769969,1.44730025,102090.0,102080.0,0.62333275]
[1738019770167,1.59422925,102090.0,102080.0,0.62333275]
[1738019770419,1.44730025,102090.0,102080.0,0.62333275]
[1738019770542,1.54464754,102090.0,102080.0,0.62333275]
[1738019770749,1.54464754,102090.0,102080.0,0.77027575]
[1738019770975,1.54464754,102090.0,102080.0,0.62333275]
[1738019771649,1.29726025,102090.0,102080.0,0.77027575]
[1738019772115,1.28718025,102090.0,102080.0,0.77027575]
[1738019772300,1.18983296,102090.0,102080.0,0.77027575]
[1738019772627,1.33410925,102090.0,102080.0,0.62333275]
[1738019773657,1.28718025,102090.0,102080.0,0.62333275]
[1738019773838,1.28718025,102090.0,102080.0,0.77027575]
[1738019774625,1.29722025,102090.0,102080.0,0.77027575]
[1738019774978,1.18718025,102090.0,102080.0,0.77027575]
[1738019775804,1.19730025,102090.0,102080.0,0.77027575]
[1738019779175,1.29730025,102090.0,102080.0,0.77227575]
[1738019779377,1.39464754,102090.0,102080.0,0.77227575]
[1738019779813,1.19730025,102090.0,102080.0,0.77227575]
[1738019782067,1.19730025,102090.0,102080.0,0.76832119]
[1738019784315,1.19730025,102090.0,102080.0,0.62137819]
[1738019784731,1.19730025,102090.0,102080.0,0.76832119]
[1738019784732,1.29730025,102090.0,102080.0,0.76832119]
[1738019785139,1.39730025,102090.0,102080.0,0.76832119]
[1738019785537,1.25180025,102090.0,102080.0,0.76832119]
[1738019785702,1.05445296,102090.0,102080.0,0.76832119]
[1738019786337,0.75483296,102090.0,102080.0,1.02908303]
[1738019786720,0.75483296,102090.0,102080.0,0.91832119]
[1738019787318,0.75513054,102090.0,102080.0,0.91832119]
[1738019789733,0.85513054,102090.0,102080.0,0.91832119]
[1738019789945,0.85513054,102090.0,102080.0,0.76832119]
[1738019790148,0.79735767,102090.0,102080.0,0.76832119]
[1738019790727,0.89735767,102090.0,102080.0,0.76832119]
[1738019791992,0.89879767,102090.0,102080.0,0.76832119]
[1738019793124,1.09614496,102090.0,102080.0,0.69282119]
[1738019793664,1.05391783,102090.0,102080.0,0.69282119]
[1738019797903,0.95391783,102090.0,102080.0,0.69282119]
[1738019798123,0.85657054,102090.0,102080.0,0.69282119]
[1738019798693,1.05391783,102090.0,102080.0,0.69282119]
[1738019798887,0.56108487,102090.0,102080.0,0.69282119]
[1738019799066,0.61719336,102090.0,102080.0,0.69282119]
[1738019801069,0.56108487,102090.0,102080.0,0.69282119]
[1738019801287,0.56108487,102090.0,102080.0,0.49867819]
[1738019801485,0.56108487,102090.0,102080.0,0.64562119]
[1738019802057,0.46108487,102090.0,102080.0,0.64562119]
[1738019802497,0.47080487,102090.0,102080.0,0.64562119]
[1738019802681,0.56546696,102090.0,102080.0,0.64562119]
[1738019804103,0.47080487,102090.0,102080.0,0.64562119]
[1738019804298,0.46108487,102090.0,102080.0,0.64562119]
[1738019804659,0.47076487,102090.0,102080.0,0.64562119]
[1738019805823,0.36373758,102090.0,102080.0,0.64562119]
[1738019806035,0.37337758,102090.0,102080.0,0.64562119]
[1738019806258,0.44094699,102090.0,102080.0,0.64562119]
[1738019810311,0.63829428,102090.0,102080.0,0.64562119]
[1738019811055,0.53829428,102090.0,102080.0,0.64562119]
[1738019811276,0.47072487,102090.0,102080.0,0.64562119]
[1738019811490,0.36373758,102090.0,102080.0,0.64562119]
[1738019811698,0.26373758,102090.0,102080.0,0.80428303]
[1738019811924,0.26373758,102090.0,102080.0,0.91136973]
[1738019812999,0.26373758,102090.0,102080.0,1.06136973]
[1738019813206,0.36373758,102090.0,102080.0,0.95260789]
[1738019813411,0.36373758,102090.0,102080.0,0.80260789]
[1738019813617,0.36373758,102090.0,102080.0,0.77222119]
[1738019813765,0.36373758,102090.0,102080.0,0.77022119]
[1738019814179,0.36473758,102090.0,102080.0,0.77422119]
[1738019814799,0.36473758,102090.0,102080.0,0.64962119]
[1738019814940,0.3841172,102090.0,102080.0,0.64962119]
[1738019815151,0.48146449,102090.0,102080.0,0.64962119]
[1738019815353,0.46208487,102090.0,102080.0,0.64962119]
[1738019816087,0.46208487,102090.0,102080.0,0.64762119]
[1738019817683,0.36208487,102090.0,102080.0,0.64762119]
[1738019818537,0.36108487,102090.0,102080.0,0.64362119]
[1738019818948,0.36108487,102090.0,102080.0,0.64462119]
[1738019819691,0.43325367,102090.0,102080.0,0.64462119]
[1738019820935,0.36108487,102090.0,102080.0,0.64462119]
[1738019821105,0.47064487,102090.0,102080.0,0.64462119]
[1738019822795,0.37325758,102090.0,102080.0,0.88168303]
[1738019823008,0.37325758,102090.0,102080.0,0.77092119]